bitfinex/quotes_ETHUSD_20240711
["timestamp","ask_amount","ask_price","bid_price","bid_amount"]
[1720663257690,2.42,3129.7,3128.6,1.982]
[1720663257846,2.42,3129.7,3128.7,0.55]
[1720663258245,2.42,3129.7,3128.7,3.0]
[1720663258771,2.42,3129.7,3128.6,1.982]
[1720663258941,2.42,3129.7,3128.7,0.55]
[1720663259180,2.42,3129.7,3128.7,3.55]
[1720663260420,2.42,3129.7,3128.7,3.0]
[1720663260620,0.04797299,3130.3,3128.6,1.982]
[1720663260621,2.329,3130.2,3128.6,1.982]
[1720663260827,2.329,3130.9,3129.3,1.982]
[1720663260981,5.702,3130.9,3129.3,1.982]
[1720663261316,3.373,3130.7,3128.9,4.982]
[1720663261478,0.04797299,3130.6,3129.0,0.55]
[1720663261680,3.373,3130.4,3129.1,0.5532]
[1720663261877,3.42097299,3130.4,3129.1,0.5532]
[1720663262416,0.3420973,3130.5,3129.1,0.5532]
[1720663262617,2.329,3130.8,3129.2,0.55]
[1720663262852,2.329,3130.8,3129.3,0.06390106]
[1720663263010,2.329,3130.8,3129.7,1.982]
[1720663263325,2.2551,3131.3,3129.8,0.61389062]
[1720663263523,2.2551,3131.9,3130.1,1.982]
[1720663263819,0.2303073,3131.8,3130.2,0.81207957]
[1720663264023,2.2551,3131.9,3130.5,1.982]
[1720663264219,2.2551,3131.9,3130.6,0.55]
[1720663264586,2.2551,3131.9,3130.6,3.55]
[1720663265082,2.4743,3132.4,3130.6,3.61386995]
[1720663265278,2.72173,3132.4,3130.7,0.559587]
[1720663265603,0.04797299,3132.3,3130.8,0.55]
[1720663265808,0.04797299,3132.3,3130.7,0.559587]
[1720663266185,6.14270299,3132.4,3130.8,0.06387687]
[1720663266518,6.14270299,3132.4,3130.7,0.559587]
[1720663266732,3.373,3132.0,3129.9,2.3429]
[1720663266894,5.0091,3132.1,3129.4,9.7429]
[1720663266895,3.373,3131.6,3129.4,9.7429]
[1720663267097,0.04797299,3131.5,3129.4,9.7429]
[1720663267422,3.373,3131.3,3129.4,2.3429]
[1720663267581,0.58018,3131.2,3129.5,0.23429]
[1720663267787,0.58018,3131.2,3129.6,0.06389074]
[1720663267979,2.4288,3131.4,3129.6,0.06389074]
[1720663268204,2.4288,3131.4,3129.8,2.639]
[1720663268425,2.4288,3131.4,3129.9,0.0638841]
[1720663268632,2.4288,3131.4,3129.9,3.6138841]
[1720663268783,2.2685,3131.9,3129.9,6.8087941]
[1720663268984,0.27962029,3131.8,3130.0,0.94477941]
[1720663269194,0.04797299,3131.7,3130.2,2.639]
[1720663269425,0.04797299,3131.7,3130.3,3.0]
[1720663269582,0.04797299,3131.7,3130.0,0.94477941]
[1720663270801,0.2316473,3131.8,3130.0,0.94477941]
[1720663271085,0.04797299,3131.7,3130.1,0.4558661]
[1720663271643,0.2316473,3131.8,3130.1,0.4558661]
[1720663271828,0.2316473,3131.8,3130.2,0.55]
[1720663272085,3.6046473,3131.8,3130.2,0.55]
[1720663272310,0.58731473,3131.7,3130.2,0.55]
[1720663272698,3.96031473,3131.7,3130.1,0.4558661]
[1720663272905,3.373,3131.3,3129.4,2.3429]
[1720663273232,3.373,3131.0,3129.1,0.5532]
[1720663273441,0.04797299,3130.9,3129.1,0.5532]
[1720663273601,0.04797299,3130.8,3129.4,2.639]
[1720663273803,2.4541,3131.1,3129.4,2.639]
[1720663273804,2.50207299,3131.1,3129.4,2.639]
[1720663274110,0.04797299,3131.0,3129.5,3.0]
[1720663274504,2.4541,3131.1,3129.5,3.0]
[1720663274833,2.4541,3131.1,3129.6,0.62779315]
[1720663275122,0.04797299,3131.0,3129.7,0.55]
[1720663275788,3.42097299,3131.0,3129.5,3.0]
[1720663275999,0.04797299,3131.0,3129.5,3.0]
[1720663276191,0.2502073,3130.9,3129.1,3.5532]
[1720663276628,2.50207299,3131.1,3129.4,2.639]
[1720663276902,2.50207299,3131.1,3129.5,3.0]
[1720663277524,2.50207299,3131.1,3129.6,0.55]
[1720663277731,3.373,3130.8,3129.5,3.0]
[1720663277960,3.373,3130.8,3129.1,0.5532]
[1720663277961,2.2564,3130.6,3129.1,0.5532]
[1720663278162,3.42097299,3130.5,3129.0,2.639]
[1720663278724,3.373,3130.5,3129.0,2.639]
[1720663278928,0.04797299,3130.4,3129.0,2.639]
[1720663279469,0.04797299,3130.5,3129.1,3.0]
[1720663279652,0.31214029,3130.5,3129.2,0.5639]
[1720663281071,3.68514029,3130.5,3129.2,0.5639]
[1720663281530,3.373,3130.3,3128.5,4.9005]
[1720663281727,0.04797299,3130.2,3128.5,4.9005]
[1720663283027,0.04797299,3130.2,3128.6,3.0]
[1720663283228,3.373,3130.0,3128.4,7.4]
[1720663283527,5.79647299,3129.9,3128.5,0.74]
[1720663283733,5.79647299,3129.9,3128.1,2.639]
[1720663283982,5.79647299,3129.9,3128.2,0.06392579]
[1720663284141,5.79647299,3129.9,3128.1,2.639]
[1720663285177,5.79647299,3129.9,3128.2,3.0]
[1720663285331,3.373,3129.7,3128.3,0.5639]
[1720663285535,0.04797299,3129.6,3128.3,0.5639]
[1720663285880,0.5796473,3129.8,3128.3,0.62782574]
[1720663286377,0.5796473,3129.8,3128.3,0.5639]
[1720663286561,2.3755,3129.9,3128.3,0.5639]
[1720663288740,0.04797299,3129.8,3128.3,0.5639]
[1720663289343,5.7915,3129.7,3128.3,0.5639]
[1720663289572,0.04797299,3129.6,3128.3,0.5639]
[1720663289743,0.04797299,3129.6,3127.8,3.0]
[1720663289943,5.6463,3129.5,3127.7,10.039]
[1720663290142,5.6993,3129.3,3127.7,2.639]
[1720663290455,0.04797299,3129.2,3127.7,2.639]
[1720663291139,0.04797299,3129.2,3127.3,2.79416486]
[1720663291336,0.04797299,3129.2,3127.0,9.33659685]
[1720663291337,5.808,3128.9,3127.4,0.27941649]
[1720663291586,0.04797299,3128.8,3127.0,7.4]
[1720663291748,0.04797299,3128.8,3126.9,4.9198]
[1720663292069,0.04797299,3128.8,3126.9,5.21183713]
[1720663292383,2.435,3128.9,3127.3,2.639]
[1720663292541,2.435,3128.9,3127.4,3.61393552]
[1720663292737,2.435,3128.9,3127.5,0.62529355]
[1720663293142,2.435,3128.9,3127.6,0.06393553]
[1720663293582,2.435,3128.9,3127.5,0.62529355]
[1720663293754,2.435,3128.9,3127.7,2.639]
[1720663294084,2.435,3128.9,3127.8,3.6139283]
[1720663294385,2.435,3128.9,3127.9,0.62529283]
[1720663294697,2.435,3128.9,3128.0,0.06392832]
[1720663294976,3.42097299,3130.2,3128.2,2.639]
[1720663294977,2.2952,3130.1,3128.2,2.639]
[1720663295146,2.2952,3130.1,3128.3,3.0]
[1720663295346,2.2952,3130.1,3128.4,1.1139]
[1720663295347,6.28299299,3130.1,3128.4,1.1139]
[1720663295779,5.6402,3129.6,3128.4,0.5639]
[1720663295943,2.2672,3129.6,3128.4,0.5639]
[1720663296142,2.31517299,3129.6,3127.9,3.62529283]
[1720663296376,5.68817299,3129.6,3128.0,0.55]
[1720663297344,5.68817299,3129.6,3127.9,3.62529283]
[1720663297895,2.2672,3129.6,3128.0,2.34442831]
[1720663298047,2.4927,3131.0,3128.3,2.639]
[1720663298242,2.4927,3130.8,3128.7,2.639]
[1720663298488,2.4927,3130.6,3128.8,3.0]
[1720663298695,2.4927,3130.4,3128.4,3.0]
[1720663298847,3.373,3130.1,3128.4,3.0]
[1720663299046,3.373,3129.9,3128.4,3.0]
[1720663299245,6.46702299,3129.8,3128.5,0.3]
[1720663299492,0.04797299,3129.7,3128.1,3.0]
[1720663299793,0.04797299,3129.7,3128.0,5.2805]
[1720663300003,2.4625,3129.8,3128.1,0.55]
[1720663300158,2.4625,3129.8,3128.1,3.55]
[1720663300574,0.04797299,3129.7,3128.1,3.0]
[1720663300778,0.5883473,3129.6,3128.2,0.3]
[1720663301364,3.42097299,3129.7,3128.2,0.3]
[1720663301775,2.4625,3129.8,3128.2,0.3]
[1720663302154,2.4625,3129.8,3128.3,0.06392411]
[1720663303255,2.4625,3129.8,3128.3,2.70292411]
[1720663303569,2.4625,3129.8,3128.4,3.0]
[1720663303773,2.4625,3129.8,3128.5,1.18421395]
[1720663304082,2.51047299,3129.8,3128.5,0.57029241]
[1720663304266,2.4625,3129.8,3128.5,0.57029241]
[1720663304655,2.4625,3129.8,3128.0,3.0]
[1720663304887,2.4625,3129.8,3128.1,0.55]
[1720663305550,6.373,3130.3,3128.0,3.0]
[1720663305551,2.2662,3129.6,3128.0,3.0]
[1720663306887,2.2662,3129.6,3128.1,0.06392268]
[1720663308395,2.2662,3129.6,3128.0,3.0]
[1720663308556,1.10755749,3129.5,3128.1,1.17642928]
[1720663308755,2.49282,3129.6,3128.1,1.17642928]
[1720663309314,2.2662,3129.6,3128.2,0.06392266]
[1720663309516,2.2662,3129.6,3128.3,3.189]
[1720663309691,2.2662,3129.6,3128.4,3.0639159]
[1720663309895,2.2662,3129.6,3128.4,3.0]
[1720663310093,2.2662,3129.6,3128.5,0.0639159]
[1720663310315,2.2662,3129.6,3128.6,0.30639159]
[1720663312422,1.10749692,3129.5,3128.6,0.30639159]
[1720663312622,2.2662,3129.6,3128.6,0.30639159]
[1720663312786,1.10752943,3129.5,3128.6,0.30639159]
[1720663313119,2.2662,3129.6,3128.2,4.982]
[1720663313323,1.10754507,3129.5,3128.2,4.982]
[1720663313626,2.2662,3129.6,3128.2,4.982]
[1720663313797,1.10749775,3129.5,3128.2,5.0459222]
[1720663313998,2.2662,3129.6,3128.2,5.0459222]
[1720663314183,1.10753298,3129.5,3128.3,0.56723515]
[1720663314381,2.2662,3129.6,3128.4,0.06392215]
[1720663316619,2.4713,3130.1,3128.6,1.982]
[1720663316913,2.4713,3130.1,3128.7,0.61390961]
[1720663316914,1.10732824,3130.0,3128.7,0.61390961]
[1720663317121,2.4713,3130.1,3128.8,0.06390966]
[1720663317326,1.10734312,3130.0,3128.9,0.36139097]
[1720663317526,2.4713,3130.1,3128.9,0.36139097]
[1720663317681,1.10734683,3130.0,3128.9,0.36139097]
[1720663317877,2.4713,3130.1,3128.9,0.36139097]
[1720663317878,2.4713,3130.1,3129.0,0.06390908]
[1720663318527,2.4713,3130.1,3129.0,2.04590908]
[1720663318728,0.38265679,3130.7,3129.1,0.24073001]
[1720663318729,2.2534,3130.6,3129.1,0.24073001]
[1720663318915,1.10723635,3130.5,3129.2,0.06390665]
[1720663319083,1.10723635,3130.4,3129.2,0.06390665]
[1720663319316,1.10723635,3130.3,3129.2,0.06390665]
[1720663319513,1.10723635,3130.5,3129.2,0.52866367]
[1720663319715,1.15520934,3130.5,3129.2,0.52866367]
[1720663319959,1.10723635,3130.4,3129.2,0.52866367]
[1720663320256,0.04797299,3130.5,3129.2,0.52866367]
[1720663320551,1.15524047,3130.4,3129.1,3.0]
[1720663320742,0.04797299,3130.4,3128.9,0.36139097]
[1720663320938,1.10731055,3130.3,3128.9,0.36139097]
[1720663321138,1.10731055,3130.2,3128.9,0.36139097]
[1720663321325,1.10731055,3130.3,3128.9,0.36139097]
[1720663321653,5.78777299,3130.2,3128.7,3.0]
[1720663321876,5.78777299,3130.2,3128.8,1.11272657]
[1720663321877,1.10731055,3130.1,3128.8,1.11272657]
[1720663322028,1.10731055,3130.1,3128.7,4.73299225]
[1720663322223,1.10731055,3130.1,3128.8,1.11270395]
[1720663322531,1.10731055,3130.1,3128.7,3.0]
[1720663322748,0.34741105,3130.0,3128.8,0.81209618]
[1720663322949,1.15528354,3129.9,3128.8,0.81209618]
[1720663323150,1.10736372,3129.8,3128.8,0.81209618]
[1720663323321,0.34741105,3130.0,3128.8,0.81209618]
[1720663323524,1.10734622,3129.9,3128.9,0.06391337]
[1720663323725,0.34741105,3130.0,3128.9,0.06391337]
[1720663323929,1.10735889,3129.9,3128.9,0.06391337]
[1720663324163,0.34741105,3130.0,3128.8,2.48114781]
[1720663324373,0.34741105,3130.0,3128.8,3.81209618]
[1720663324676,1.10729933,3129.9,3128.9,0.68120962]
[1720663324971,2.3668,3130.2,3129.0,0.06391339]
[1720663325184,1.10727231,3130.1,3129.0,0.06391339]
[1720663325364,2.3668,3130.2,3128.9,0.68120962]
[1720663325537,1.10729166,3130.1,3128.9,3.68120962]
[1720663325737,1.45470083,3130.0,3129.0,0.4557215]
[1720663325940,1.10729166,3129.9,3128.9,0.68120962]
[1720663326270,1.10729166,3129.9,3128.7,3.0]
[1720663326572,1.10729166,3129.9,3128.6,4.982]
[1720663326780,1.10729166,3129.9,3128.6,1.982]
[1720663326984,0.34740917,3130.0,3128.6,1.982]
[1720663327154,1.10742935,3129.9,3128.6,1.982]
[1720663327492,2.3668,3130.2,3129.0,1.982]
[1720663327786,2.2615,3131.3,3129.8,1.982]
[1720663328107,1.10701051,3131.2,3130.2,1.982]
[1720663328266,2.4931473,3131.8,3130.2,1.982]
[1720663328267,2.2615,3131.8,3130.2,1.982]
[1720663328577,1.10680565,3131.7,3130.3,0.61388009]
[1720663328737,1.10680565,3131.6,3130.3,3.61388009]
[1720663328938,2.2615,3131.8,3130.3,3.0]
[1720663328939,3.373,3131.5,3130.3,3.0]
[1720663329248,2.2615,3131.3,3129.9,3.0]
[1720663329447,4.52780615,3131.2,3129.9,3.0]
[1720663329761,1.10683316,3131.1,3129.4,4.982]
[1720663329950,0.04797299,3131.0,3129.4,4.982]
[1720663330704,1.10709213,3130.9,3129.4,4.982]
[1720663331000,6.92310624,3130.8,3129.4,1.982]
[1720663331201,6.92310624,3130.8,3128.8,4.0523941]
[1720663331202,3.373,3130.6,3129.0,1.982]
[1720663331504,1.10713325,3130.5,3129.0,1.982]
[1720663332357,2.395,3130.8,3129.0,2.0459009]
[1720663332358,1.10713325,3130.7,3129.0,2.0459009]
[1720663332554,1.45734658,3130.7,3129.1,0.50459009]
[1720663332866,1.10713325,3130.6,3129.1,3.50459009]
[1720663333505,0.35021333,3130.7,3129.1,3.50459009]
[1720663333664,2.395,3130.8,3129.2,0.55]
[1720663333665,1.10718731,3130.6,3129.2,0.55]
[1720663333864,2.395,3130.8,3129.2,0.55]
[1720663334269,2.395,3130.8,3129.4,2.641]
[1720663334468,3.373,3131.3,3129.8,2.641]
[1720663334469,2.4996,3131.3,3129.8,2.641]
[1720663334693,2.4996,3131.3,3129.9,3.87797672]
[1720663334912,0.33459166,3132.1,3129.9,3.87797672]
[1720663335204,1.10676662,3132.0,3130.2,2.641]
[1720663335359,1.15473961,3131.9,3130.3,3.55]
[1720663335554,3.44426662,3131.8,3130.3,3.55]
[1720663335792,4.8769975,3131.7,3130.1,3.0]
[1720663336089,3.77019695,3131.7,3130.0,5.4408]
[1720663336597,0.04797299,3131.6,3130.0,5.4408]
[1720663338068,3.42097299,3131.6,3130.0,5.4408]
[1720663338269,3.42097299,3131.6,3130.0,3.0]
[1720663338270,3.373,3131.4,3130.0,3.0]
[1720663338470,2.3542,3131.1,3129.4,5.0593]
[1720663338803,0.04797299,3131.0,3129.4,5.0593]
[1720663339157,2.3542,3131.1,3129.5,0.06389637]
[1720663339358,2.3542,3131.1,3129.4,5.0593]
[1720663339657,0.04797299,3131.0,3129.5,3.0]
[1720663339892,0.04797299,3131.0,3129.6,0.80593]
[1720663339893,0.5775173,3130.9,3129.6,0.80593]
[1720663340097,0.04797299,3130.8,3129.6,0.80593]
[1720663341299,5.6524,3130.7,3129.1,0.50459009]
[1720663341454,0.04797299,3130.6,3129.1,0.50459009]
[1720663342280,2.2794,3130.7,3129.1,0.50459009]
[1720663342783,2.2794,3130.7,3129.2,0.55]
[1720663342973,0.22794,3130.6,3129.3,0.0638976]
[1720663343363,2.2794,3130.7,3129.4,2.641]
[1720663343595,2.2794,3130.7,3129.5,3.0]
[1720663344300,2.2794,3130.7,3129.1,3.50459009]
[1720663344593,2.2794,3130.7,3129.2,0.55]
[1720663345174,2.2794,3130.7,3129.3,0.06389637]
[1720663345363,2.2794,3130.7,3129.4,0.55]
[1720663345560,2.2794,3130.7,3129.5,0.06389228]
[1720663345813,2.2794,3130.7,3129.6,0.32548923]
[1720663346159,2.2794,3130.7,3129.5,3.0]
[1720663346683,2.2794,3130.7,3129.2,0.0638976]
[1720663346889,2.2794,3130.7,3129.3,0.61389638]
[1720663347397,2.2794,3130.7,3129.3,0.55]
[1720663347590,2.2794,3130.7,3129.2,0.55]
[1720663347779,2.2794,3130.7,3129.3,0.4118484]
[1720663347979,2.2794,3130.7,3129.4,0.55]
[1720663348404,2.2794,3130.7,3129.3,0.4118484]
[1720663348602,1.15516091,3130.6,3129.3,0.4118484]
[1720663348803,0.04797299,3130.6,3129.1,0.50459009]
[1720663348961,0.04797299,3130.6,3129.2,0.55]
[1720663349284,1.10723323,3130.5,3129.2,0.55]
[1720663349488,0.04797299,3130.4,3129.2,0.55]
[1720663349693,0.04797299,3130.4,3128.5,2.641]
[1720663349694,5.7764,3130.3,3128.5,2.641]
[1720663349893,0.04797299,3130.2,3128.5,2.641]
[1720663350100,1.10739668,3130.1,3128.5,2.641]
[1720663350409,5.7764,3130.3,3128.5,2.641]
[1720663350410,2.2568,3129.9,3128.5,2.641]
[1720663350614,0.38919349,3129.8,3128.6,0.2641]
[1720663350914,0.04797299,3129.7,3128.6,0.2641]
[1720663351606,0.04797299,3129.7,3128.6,3.2641]
[1720663351796,2.2568,3129.9,3128.6,3.2641]
[1720663352167,2.2568,3129.9,3128.6,5.7107]
[1720663352373,2.2568,3129.9,3128.7,1.38517]
[1720663352776,2.2568,3129.9,3128.7,1.44907789]
[1720663353015,2.2568,3129.9,3128.7,1.38517]
[1720663353244,2.2568,3129.9,3128.7,0.83517]
[1720663354599,0.04797299,3129.8,3128.7,0.83517]
[1720663354826,0.2304773,3129.7,3128.7,0.83517]
[1720663355014,2.2568,3129.9,3128.7,0.83517]
[1720663356942,2.2568,3129.9,3128.8,0.55]
[1720663357698,2.2568,3129.9,3128.7,0.83517]
[1720663359912,0.04797299,3129.8,3128.7,0.83517]
[1720663360111,0.04797299,3129.8,3128.6,3.0]
[1720663360307,0.04797299,3129.8,3128.5,1.982]
[1720663360721,2.2568,3129.9,3128.5,1.982]
[1720663360924,2.30477299,3129.9,3128.5,1.982]
[1720663362020,0.04797299,3129.8,3128.5,1.982]
[1720663362221,0.27845029,3129.8,3128.6,0.1982]
[1720663362426,3.42839925,3129.7,3128.5,1.982]
[1720663362748,2.36887299,3129.7,3128.1,1.982]
[1720663365476,1.10759937,3129.6,3128.1,1.982]
[1720663365660,0.39562023,3129.5,3128.2,0.1982]
[1720663365974,0.34764724,3129.5,3128.2,0.1982]
[1720663366678,0.04797299,3129.4,3128.2,0.1982]
[1720663367481,2.251,3129.3,3128.2,0.1982]
[1720663367684,0.04797299,3129.2,3128.2,0.1982]
[1720663367838,0.04797299,3129.2,3128.3,0.21802]
[1720663372384,2.251,3129.3,3128.3,0.21802]
[1720663373861,0.04797299,3129.2,3128.3,0.21802]
[1720663374248,0.04797299,3129.2,3128.1,1.982]
[1720663374854,2.4081,3129.1,3127.7,1.982]
[1720663375059,0.04797299,3129.0,3127.7,1.982]
[1720663377483,1.10778692,3128.9,3127.7,1.982]
[1720663377678,2.53647299,3128.8,3127.7,1.982]
[1720663377882,0.04797299,3128.7,3127.8,0.1982]
[1720663379287,2.7421473,3128.8,3127.8,0.1982]
[1720663380348,0.04797299,3128.7,3127.8,0.1982]
[1720663380560,0.04797299,3128.7,3127.2,1.982]
[1720663380771,0.04797299,3128.7,3127.3,0.55]
[1720663381081,0.04797299,3128.7,3127.3,3.55]
[1720663381447,0.04797299,3128.7,3127.3,3.0]
[1720663381795,2.7421473,3128.8,3127.2,1.982]
[1720663381982,1.42999428,3128.7,3127.3,0.24324828]
[1720663382285,2.3879,3128.6,3127.3,0.24324828]
[1720663382475,0.04797299,3128.5,3127.3,0.24324828]
[1720663382781,2.3879,3128.6,3127.3,3.24324828]
[1720663382990,0.04797299,3128.5,3127.3,0.24324828]
[1720663383192,0.04797299,3128.5,3127.4,0.22252483]
[1720663385311,2.3879,3128.6,3127.4,0.22252483]
[1720663385480,2.3879,3128.6,3127.5,0.06394175]
[1720663385680,2.3879,3128.6,3127.4,0.22252483]
[1720663386717,2.37671342,3128.6,3127.6,1.982]
[1720663386924,2.37671342,3128.6,3127.7,0.7482]
[1720663387109,2.37671342,3128.6,3127.7,3.1982]
[1720663387494,2.37671342,3128.6,3127.7,0.1982]
[1720663389009,2.37671342,3128.6,3127.8,0.55]
[1720663389210,2.37671342,3128.6,3127.7,0.1982]
[1720663389211,2.37671342,3128.6,3127.7,3.1982]
[1720663389400,2.37671342,3128.6,3127.8,0.51802]
[1720663389584,0.04797299,3128.5,3127.7,3.1982]
[1720663389779,2.37671342,3128.6,3127.7,0.1982]
[1720663398547,0.04797299,3128.5,3127.7,0.1982]
[1720663398828,0.04797299,3128.5,3127.3,3.0]
[1720663399030,0.04797299,3128.5,3127.2,1.982]
[1720663399528,2.4803,3128.3,3127.2,1.982]
[1720663399743,2.4803,3128.1,3126.9,1.9618418]
[1720663399946,2.4803,3128.1,3126.7,2.96769769]
[1720663399947,2.4209,3128.0,3126.7,1.982]
[1720663400247,2.4209,3128.0,3126.7,2.04595272]
[1720663400544,1.10806763,3127.9,3126.7,2.04595272]
[1720663400708,1.10806763,3127.8,3126.8,0.20459527]
[1720663400909,1.10806763,3127.9,3126.8,0.20459527]
[1720663402135,2.4209,3128.0,3126.8,0.20459527]
[1720663402344,2.4209,3128.0,3126.8,0.26854795]
[1720663402524,2.4209,3128.0,3126.8,0.20459527]
[1720663402718,2.4209,3128.0,3126.9,0.21865953]
[1720663403029,1.10807754,3127.9,3126.9,0.21865953]
[1720663403217,2.4209,3128.0,3126.9,0.21865953]
[1720663403424,1.10809085,3127.9,3126.9,0.21865953]
[1720663403650,2.4209,3128.0,3126.9,0.21865953]
[1720663403970,1.15606443,3127.9,3126.9,0.21865953]
[1720663404256,2.66299,3128.0,3126.9,0.21865953]
[1720663404419,1.10811144,3127.9,3126.9,0.21865953]
[1720663406840,2.4209,3128.0,3126.9,0.282615]
[1720663408349,2.66299,3128.0,3127.0,0.3282615]
[1720663408547,2.66299,3128.0,3126.9,0.21865953]
[1720663408981,2.4209,3128.0,3126.9,0.21865953]
[1720663411769,2.4209,3128.0,3127.0,0.06395276]
[1720663412170,2.4209,3128.0,3127.1,1.982]
[1720663417048,2.2876,3128.5,3127.3,2.4571]
[1720663417214,2.2876,3128.5,3127.5,1.982]
[1720663418632,2.2876,3128.5,3127.4,3.30710473]
[1720663419502,0.04797299,3128.4,3127.4,3.30710473]
[1720663419697,0.04797299,3128.4,3127.5,3.0]
[1720663419894,2.2876,3128.5,3127.4,0.30710473]
[1720663420120,2.2876,3128.5,3127.2,3.0]
[1720663420333,0.04797299,3128.4,3127.1,1.982]
[1720663420643,1.10792208,3128.4,3127.1,1.982]
[1720663420963,2.2876,3128.5,3127.1,1.982]
[1720663420964,1.10792208,3128.3,3127.1,1.982]
[1720663421112,1.15589507,3128.4,3127.1,1.982]
[1720663421312,1.10792208,3128.3,3127.2,0.4982]
[1720663422250,1.10792208,3128.3,3126.9,2.67575953]
[1720663422455,0.80792208,3128.3,3126.9,2.67575953]
[1720663422828,5.6606,3128.5,3126.9,2.67575953]
[1720663423355,5.6606,3128.5,3127.0,3.0]
[1720663424332,2.2876,3128.5,3127.0,3.06394869]
[1720663424528,2.2876,3128.5,3127.1,0.57397082]
[1720663425449,2.2876,3128.5,3127.1,2.55597082]
[1720663425749,2.2876,3128.5,3127.2,3.0]
[1720663426262,2.33557299,3128.5,3127.2,3.0]
[1720663427365,2.2876,3128.5,3127.2,3.0]
[1720663427518,2.2876,3128.5,3127.3,0.55559708]
[1720663427719,0.04797299,3128.4,3127.3,0.55559708]
[1720663430957,5.6606,3128.5,3127.3,0.55559708]
[1720663431148,2.2876,3128.5,3127.3,0.55559708]
[1720663432284,2.33557299,3128.5,3127.3,0.55559708]
[1720663432476,1.15593206,3128.4,3127.4,0.35555971]
[1720663432640,1.15593206,3128.4,3127.5,0.826]
[1720663432641,1.10795907,3128.3,3127.5,0.826]
[1720663432840,0.04797299,3128.2,3127.5,0.826]
[1720663433133,1.10795907,3128.1,3127.5,0.826]
[1720663433734,0.04797299,3128.2,3127.5,0.826]
[1720663434038,1.10801995,3128.1,3127.5,0.826]
[1720663434234,1.10801995,3128.0,3127.5,0.826]
[1720663434433,1.10801995,3128.3,3127.5,0.826]
[1720663434634,1.15599294,3128.2,3127.5,0.826]
[1720663434842,1.10801995,3128.1,3127.5,0.826]
[1720663437081,1.10801995,3128.1,3127.2,0.826]
[1720663437293,0.45289929,3128.1,3127.2,0.826]
[1720663437493,2.3441,3127.9,3126.5,4.04457383]
[1720663437699,1.15607588,3127.8,3126.8,0.826]
[1720663437844,1.10810289,3127.7,3126.8,0.826]
[1720663438045,1.10810289,3127.8,3127.0,0.826]
[1720663438291,1.45332318,3127.7,3127.0,0.826]
[1720663438469,1.10810289,3127.6,3127.0,0.826]
[1720663438669,1.10810289,3127.8,3127.0,0.826]
[1720663439186,1.10810289,3127.8,3127.2,0.826]
[1720663439347,1.10810289,3127.8,3127.4,0.826]
[1720663439543,2.329,3128.3,3127.4,0.826]
[1720663439851,1.10807454,3128.2,3127.4,0.826]
[1720663440045,1.10807454,3128.1,3127.4,0.826]
[1720663440287,1.10807454,3128.0,3127.4,0.826]
[1720663440444,1.10805455,3127.9,3127.4,0.826]
[1720663440644,2.6445,3128.3,3127.4,0.826]
[1720663440881,1.37252138,3128.2,3127.4,0.826]
[1720663441077,1.10807138,3128.1,3127.4,0.826]
[1720663442858,1.10809848,3128.0,3127.4,0.826]
[1720663443064,1.10809848,3127.9,3127.2,0.826]
[1720663443267,1.10809848,3127.8,3127.2,0.826]
[1720663443628,0.04797299,3127.7,3127.2,0.826]
[1720663443761,2.2737,3127.6,3127.0,0.826]
[1720663444092,0.04797299,3127.5,3127.0,1.2086]
[1720663444300,0.04797299,3127.5,3127.0,0.826]
[1720663444506,2.2737,3127.6,3127.0,0.826]
[1720663445492,0.04797299,3127.9,3127.0,0.826]
[1720663445708,1.1081616,3127.8,3127.0,0.826]
[1720663445876,1.15613459,3127.7,3127.0,0.826]
[1720663446201,0.04797299,3127.7,3127.0,0.826]
[1720663446695,0.04541536,3127.7,3127.0,0.826]
[1720663447200,1.10815933,3127.6,3126.8,0.826]
[1720663447398,0.32699,3127.9,3126.8,0.826]
[1720663447399,1.15101706,3127.5,3126.8,0.826]
[1720663447577,0.04285773,3127.5,3126.8,0.826]
[1720663447991,1.10822275,3127.4,3126.8,0.826]
[1720663448302,0.04285773,3127.5,3126.8,0.826]
[1720663448475,1.10824159,3127.4,3126.8,0.826]
[1720663448675,0.04285773,3127.7,3126.8,0.826]
[1720663448984,1.10824441,3127.6,3126.8,0.826]
[1720663449362,1.15110214,3127.5,3126.8,0.826]
[1720663449559,1.10824441,3127.4,3126.6,0.826]
[1720663449775,0.04285773,3127.3,3126.6,0.826]
[1720663449989,1.10827472,3127.2,3126.6,0.826]
[1720663450208,0.04285773,3127.1,3126.6,0.826]
[1720663450363,0.04285773,3127.6,3126.7,0.826]
[1720663450562,1.1083408,3127.5,3126.7,0.826]
[1720663450763,1.15119853,3127.4,3126.7,0.826]
[1720663450957,1.1083408,3127.3,3126.7,0.826]
[1720663451263,1.1083408,3127.2,3126.7,0.826]
[1720663451459,2.3891,3127.1,3126.5,3.0]
[1720663451680,2.3891,3127.1,3126.4,0.826]
[1720663451859,2.3891,3127.1,3126.1,3.0]
[1720663451860,1.15382558,3127.0,3126.2,0.826]
[1720663452072,0.04541536,3127.0,3126.2,0.826]
[1720663453594,0.826,3126.6,3125.2,0.65932423]
[1720663453760,0.04541536,3126.5,3125.5,0.826]
[1720663453963,1.10864043,3126.4,3125.7,0.826]
[1720663454162,2.2819,3126.9,3126.2,0.826]
[1720663454469,1.10853914,3126.8,3126.2,0.826]
[1720663454693,1.10856478,3126.7,3126.0,0.826]
[1720663454893,1.10856478,3126.7,3125.4,2.3337]
[1720663454894,2.2819,3126.9,3126.2,0.826]
[1720663455102,0.826,3127.3,3126.2,0.826]
[1720663455304,0.826,3127.1,3126.0,0.826]
[1720663455603,1.30644659,3127.0,3126.0,0.826]